Workbook

Sheet Monday
A1: # Emp | B1: # Retained | C1: >B Emp | D1: >B Retained | F1: All Employees | G1: Employees ≥B in Power Excel
A2: 493 | B2: 411 | C2: 379 | D2: 337 | E2: 2006-2007 | F2: =B2/A2 -> 0.8336713996 | G2: =+D2/C2 -> 0.889182058
A3: 419 | B3: 332 | C3: 301 | D3: 251 | E3: 2007-2008 | F3: =B3/A3 -> 0.7923627685 | G3: =+D3/C3 -> 0.8338870432
A4: 463 | B4: 367 | C4: 322 | D4: 277 | E4: 200-2009 | F4: =B4/A4 -> 0.7926565875 | G4: 0.8602484472
D9: 2006-2007
D10: 0.83
D11: (n = 411 of 493)
D12: One Year Retention of Employees Using Slaying Excel Dragons
D13: 0.89
D14: (n = 337 of 379)
D16: 2007-2008
D17: 0.79
D18: (n = 332 of 419)
D19: One Year Retention of Employees Using Slaying Excel Dragons
D20: 0.83
D21: (n = 251 of 301)
D23: 2008-2009
D24: 0.79
D25: (n = 367 of 463)
D26: One Year Retention of Employees Using Slaying Excel Dragons
D27: 0.86
D28: (n = 277 of 322)

Sheet Tuesday
A1: # Emp | B1: # Retained | C1: >B Emp | D1: >B Retained | F1: All Employees | G1: Employees ≥B in Power Excel
A2: 493 | B2: 411 | C2: 379 | D2: 337 | E2: 2006-2007 | F2: =B2/A2 -> 0.8336713996 | G2: =+D2/C2 -> 0.889182058
A3: 419 | B3: 332 | C3: 301 | D3: 251 | E3: 2007-2008 | F3: =B3/A3 -> 0.7923627685 | G3: =+D3/C3 -> 0.8338870432
A4: 463 | B4: 367 | C4: 322 | D4: 277 | E4: 200-2009 | F4: =B4/A4 -> 0.7926565875 | G4: 0.8602484472

Sheet Weds
A1: # Emp | B1: # Retained | C1: >B Emp | D1: >B Retained | F1: All Employees | G1: Employees ≥B in Power Excel
A2: 493 | B2: 411 | C2: 379 | D2: 337 | E2: 2006-2007 | F2: =B2/A2 -> 0.8336713996 | G2: =+D2/C2 -> 0.889182058
A3: 419 | B3: 332 | C3: 301 | D3: 251 | E3: 2007-2008 | F3: =B3/A3 -> 0.7923627685 | G3: =+D3/C3 -> 0.8338870432
A4: 463 | B4: 367 | C4: 322 | D4: 277 | E4: 200-2009 | F4: =B4/A4 -> 0.7926565875 | G4: 0.8602484472
K7: Why Excel zooms in on the scale
K8: How to fix it.
F21: A | G21: 5000.170941
F22: B | G22: 4999.851693
F23: C | G23: 5000.327853
F24: D | G24: 4999.852796
F25: E | G25: 5000.083384
F26: F | G26: 4999.807068
F27: G | G27: 4999.785099

Sheet Thurs
A1: # Emp | B1: # Retained | C1: >B Emp | D1: >B Retained | F1: All Employees | G1: Employees Using Slaying Excel Dragons
A2: 493 | B2: 411 | C2: 379 | D2: 337 | E2: 2006-2007 | F2: =B2/A2 -> 0.8336713996 | G2: 0.97 | I2: =+G2-F2 -> 0.1363286004
A3: 419 | B3: 332 | C3: 301 | D3: 251 | E3: 2007-2008 | F3: =B3/A3 -> 0.7923627685 | G3: 0.95 | I3: =+G3-F3 -> 0.1576372315
A4: 463 | B4: 367 | C4: 322 | D4: 277 | E4: 200-2009 | F4: =B4/A4 -> 0.7926565875 | G4: =+D4/C4 -> 0.8602484472 | I4: =+G4-F4 -> 0.06759185973
I5: =AVERAGE(I2:I4) -> 0.1205192305
F6: ="Employees using Excel Dragons Were "&TEXT(I5,"0%")&" More Likely To Succeed" -> Employees using Excel Dragons Were 12% More Likely To Succeed
F22: 2006-2007
F23: 0.83
F24: (n = 411 of 493)
F25: One Year Retention of Employees Using Slaying Excel Dragons
F26: 0.89
F27: (n = 337 of 379)
F29: 2007-2008
F30: 0.79
F31: (n = 332 of 419)
F32: One Year Retention of Employees Using Slaying Excel Dragons
F33: 0.83
F34: (n = 251 of 301)
F36: 2008-2009
F37: 0.79
F38: (n = 367 of 463)
F39: One Year Retention of Employees Using Slaying Excel Dragons
F40: 0.86
F41: (n = 277 of 322)

Sheet Thurs (2)
A1: # Emp | B1: # Retained | C1: >B Emp | D1: >B Retained | F1: All Employees | G1: Employees Using Slaying Excel Dragons
A2: 493 | B2: 411 | C2: 379 | D2: 337 | E2: 2006-2007 | F2: =B2/A2 -> 0.8336713996 | G2: 0.95 | I2: =+G2-F2 -> 0.1163286004
A3: 419 | B3: 332 | C3: 301 | D3: 251 | E3: 2007-2008 | F3: =B3/A3 -> 0.7923627685 | G3: 0.95 | I3: =+G3-F3 -> 0.1576372315
A4: 463 | B4: 367 | C4: 322 | D4: 277 | E4: 200-2009 | F4: =B4/A4 -> 0.7926565875 | G4: =+D4/C4 -> 0.8602484472 | I4: =+G4-F4 -> 0.06759185973
I5: =AVERAGE(I2:I4) -> 0.1138525639
F6: ="Employees using Excel Dragons Were "&TEXT(I5,"0%")&" More Likely To Succeed" -> Employees using Excel Dragons Were 11% More Likely To Succeed
F22: 2006-2007
F23: 0.83
F24: (n = 411 of 493)
F25: One Year Retention of Employees Using Slaying Excel Dragons
F26: 0.89
F27: (n = 337 of 379)
F29: 2007-2008
F30: 0.79
F31: (n = 332 of 419)
F32: One Year Retention of Employees Using Slaying Excel Dragons
F33: 0.83
F34: (n = 251 of 301)
F36: 2008-2009
F37: 0.79
F38: (n = 367 of 463)
F39: One Year Retention of Employees Using Slaying Excel Dragons
F40: 0.86
F41: (n = 277 of 322)

Sheet Thurs (3)
A1: # Emp | B1: # Retained | C1: >B Emp | D1: >B Retained | F1: All Employees | G1: Employees Using Slaying Excel Dragons
A2: 493 | B2: 411 | C2: 379 | D2: 337 | E2: 2006-2007 | F2: =B2/A2 -> 0.8336713996 | G2: 0.95 | I2: =+G2-F2 -> 0.1163286004
A3: 419 | B3: 332 | C3: 301 | D3: 251 | E3: 2007-2008 | F3: =B3/A3 -> 0.7923627685 | G3: =+D3/C3 -> 0.8338870432 | I3: =+G3-F3 -> 0.04152427469
A4: 463 | B4: 367 | C4: 322 | D4: 277 | E4: 200-2009 | F4: =B4/A4 -> 0.7926565875 | G4: 0.8602484472 | I4: =+G4-F4 -> 0.06759185973
I5: =AVERAGE(I2:I4) -> 0.07514824494
F6: ="Employees using Excel Dragons Were "&TEXT(I5,"0%")&" More Likely To Succeed" -> Employees using Excel Dragons Were 8% More Likely To Succeed
F22: 2006-2007
F23: 0.83
F24: (n = 411 of 493)
F25: One Year Retention of Employees Using Slaying Excel Dragons
F26: 0.89
F27: (n = 337 of 379)
F29: 2007-2008
F30: 0.79
F31: (n = 332 of 419)
F32: One Year Retention of Employees Using Slaying Excel Dragons
F33: 0.83
F34: (n = 251 of 301)
F36: 2008-2009
F37: 0.79
F38: (n = 367 of 463)
F39: One Year Retention of Employees Using Slaying Excel Dragons
F40: 0.86
F41: (n = 277 of 322)
